[Event "January 9 Late 2024"]
[Site "https://www.chess.com"]
[Date "2024.01.09"]
[Round "1"]
[White "Chan, Yi Ren Daniel"]
[Black "Silva Lucena, Cristian"]
[Result "1-0"]
[Board "74"]
[TimeControl "180+1"]
[WhiteFideId "5801583"]
[BlackFideId "2232588"]
[WhiteElo "2853"]
[BlackElo "2473"]
[WhiteTeam "SGP"]
[BlackTeam "ESP"]
[WhiteClock "0:00:55"]
[BlackClock "0:00:01"]

1. e4 {[%clk 0:03:00]}  e5 {[%clk 0:02:55]} 2. Nf3 {[%clk 0:03:00]}  Nc6 {[%clk 0:02:55]} 3. Bc4 {[%clk 0:02:58]}  Bc5 {[%clk 0:02:52]} 4. c3 {[%clk 0:02:57]}  Nf6 {[%clk 0:02:52]} 5. d3 {[%clk 0:02:54]}  d6 {[%clk 0:02:49]} 6. Bg5 {[%clk 0:02:52]}  h6 {[%clk 0:02:47]} 7. Bh4 {[%clk 0:02:52]}  g5 {[%clk 0:02:48]} 8. Bg3 {[%clk 0:02:53]}  a6 {[%clk 0:02:45]} 9. a4 {[%clk 0:02:52]}  Ba7 {[%clk 0:02:45]} 10. Nbd2 {[%clk 0:02:52]}  Qe7 {[%clk 0:02:45]} 11. h4 {[%clk 0:02:32]}  g4 {[%clk 0:02:40]} 12. Nh2 {[%clk 0:02:30]}  h5 {[%clk 0:02:40]} 13. Nhf1 {[%clk 0:02:30]}  Be6 {[%clk 0:02:38]} 14. Ne3 {[%clk 0:02:30]}  O-O-O {[%clk 0:02:36]} 15. Nd5 {[%clk 0:02:16]}  Bxd5 {[%clk 0:02:27]} 16. exd5 {[%clk 0:02:11]}  Nb8 {[%clk 0:02:06]} 17. Ne4 {[%clk 0:02:04]}  Nfd7 {[%clk 0:01:58]} 18. f3 {[%clk 0:02:00]}  f5 {[%clk 0:01:56]} 19. Ng5 {[%clk 0:02:01]}  f4 {[%clk 0:01:34]} 20. Bf2 {[%clk 0:02:01]}  Bxf2+ {[%clk 0:01:32]} 21. Kxf2 {[%clk 0:02:01]}  gxf3 {[%clk 0:01:25]} 22. gxf3 {[%clk 0:01:58]}  Nf8 {[%clk 0:01:18]} 23. Qe2 {[%clk 0:01:30]}  Nbd7 {[%clk 0:01:17]} 24. Rag1 {[%clk 0:01:28]}  Kb8 {[%clk 0:01:07]} 25. a5 {[%clk 0:01:28]}  Nf6 {[%clk 0:01:04]} 26. b4 {[%clk 0:01:25]}  Rc8 {[%clk 0:01:03]} 27. Rb1 {[%clk 0:01:10]}  c6 {[%clk 0:01:02]} 28. dxc6 {[%clk 0:01:08]}  Rxc6 {[%clk 0:00:56]} 29. b5 {[%clk 0:01:08]}  axb5 {[%clk 0:00:57]} 30. Rxb5 {[%clk 0:01:08]}  Ka7 {[%clk 0:00:21]} 31. Rhb1 {[%clk 0:01:05]}  Rc7 {[%clk 0:00:21]} 32. a6 {[%clk 0:01:03]}  bxa6 {[%clk 0:00:20]} 33. Rb6 {[%clk 0:01:03]}  Ka8 {[%clk 0:00:12]} 34. Rxa6+ {[%clk 0:00:59]}  Ra7 {[%clk 0:00:12]} 35. Qa2 {[%clk 0:00:58]}  Rxa6 {[%clk 0:00:07]} 36. Bxa6 {[%clk 0:00:55]}  Qa7+ {[%clk 0:00:08]} 37. Kg2 {[%clk 0:00:56]}  Rg8 {[%clk 0:00:03]} 38. Bb7+ {[%clk 0:00:55]}  Kb8 {[%clk 0:00:03]} 39. Bd5+ {[%clk 0:00:55]}  Kc7 {[%clk 0:00:01]} 40. Qxa7+ {[%clk 0:00:55]} 1-0

[Event "January 9 Late 2024"]
[Site "https://www.chess.com"]
[Date "2024.01.09"]
[Round "1"]
[White "Maksimovic, Bojan"]
[Black "Bellissimo, Joseph F."]
[Result "1-0"]
[Board "78"]
[TimeControl "180+1"]
[WhiteFideId "14408120"]
[BlackFideId "2609843"]
[WhiteElo "2848"]
[BlackElo "2471"]
[WhiteTeam "BIH"]
[BlackTeam "CAN"]
[WhiteClock "0:01:24"]
[BlackClock "0:00:23"]

1. a3 {[%clk 0:03:00]}  e5 {[%clk 0:02:59]} 2. e3 {[%clk 0:03:01]}  d5 {[%clk 0:02:59]} 3. d4 {[%clk 0:03:02]}  e4 {[%clk 0:02:59]} 4. c4 {[%clk 0:03:02]}  c6 {[%clk 0:02:59]} 5. Bd2 {[%clk 0:03:03]}  f5 {[%clk 0:02:55]} 6. cxd5 {[%clk 0:02:57]}  cxd5 {[%clk 0:02:55]} 7. Nh3 {[%clk 0:02:57]}  Bd6 {[%clk 0:02:53]} 8. Bb4 {[%clk 0:02:57]}  Nf6 {[%clk 0:02:50]} 9. Nc3 {[%clk 0:02:57]}  O-O {[%clk 0:02:48]} 10. Qb3 {[%clk 0:02:58]}  Be6 {[%clk 0:02:30]} 11. Nf4 {[%clk 0:02:41]}  Bf7 {[%clk 0:02:26]} 12. Bxd6 {[%clk 0:02:41]}  Qxd6 {[%clk 0:02:26]} 13. Qxb7 {[%clk 0:02:42]}  Nc6 {[%clk 0:02:26]} 14. Nb5 {[%clk 0:02:41]}  Qd7 {[%clk 0:02:16]} 15. Qxd7 {[%clk 0:02:41]}  Nxd7 {[%clk 0:02:17]} 16. Rc1 {[%clk 0:02:40]}  Ne7 {[%clk 0:01:44]} 17. h4 {[%clk 0:02:37]}  Rfc8 {[%clk 0:01:41]} 18. Rxc8+ {[%clk 0:02:35]}  Rxc8 {[%clk 0:01:41]} 19. Kd2 {[%clk 0:02:36]}  Rb8 {[%clk 0:01:37]} 20. Kc2 {[%clk 0:02:36]}  Nf6 {[%clk 0:01:33]} 21. Be2 {[%clk 0:02:35]}  Rb6 {[%clk 0:01:26]} 22. Nc3 {[%clk 0:02:35]}  Be8 {[%clk 0:01:16]} 23. b4 {[%clk 0:02:34]}  h6 {[%clk 0:01:11]} 24. h5 {[%clk 0:02:34]}  Kh7 {[%clk 0:01:08]} 25. Kb3 {[%clk 0:02:34]}  a5 {[%clk 0:01:06]} 26. b5 {[%clk 0:02:34]}  Rb8 {[%clk 0:00:50]} 27. Rc1 {[%clk 0:02:32]}  Ng4 {[%clk 0:00:35]} 28. Bxg4 {[%clk 0:02:32]}  fxg4 {[%clk 0:00:36]} 29. g3 {[%clk 0:02:33]}  Bxb5 {[%clk 0:00:35]} 30. Nxb5 {[%clk 0:02:03]}  Rxb5+ {[%clk 0:00:36]} 31. Ka2 {[%clk 0:02:04]}  a4 {[%clk 0:00:28]} 32. Rc7 {[%clk 0:02:00]}  Ng8 {[%clk 0:00:28]} 33. Ne6 {[%clk 0:01:59]}  Rb3 {[%clk 0:00:26]} 34. Rxg7+ {[%clk 0:01:37]}  Kh8 {[%clk 0:00:27]} 35. Rxg4 {[%clk 0:01:38]}  Rd3 {[%clk 0:00:27]} 36. Rf4 {[%clk 0:01:34]}  Rd2+ {[%clk 0:00:28]} 37. Kb1 {[%clk 0:01:34]}  Ne7 {[%clk 0:00:27]} 38. Rf8+ {[%clk 0:01:33]}  Ng8 {[%clk 0:00:27]} 39. Rf7 {[%clk 0:01:27]}  Re2 {[%clk 0:00:24]} 40. Nf4 {[%clk 0:01:25]}  Rxf2 {[%clk 0:00:23]} 41. Ng6# {[%clk 0:01:24]} 1-0

[Event "January 9 Late 2024"]
[Site "https://www.chess.com"]
[Date "2024.01.09"]
[Round "1"]
[White "Shohat, Yotam"]
[Black "Klukin, Kirill"]
[Result "0-1"]
[Board "79"]
[TimeControl "180+1"]
[WhiteFideId "2813955"]
[BlackFideId "24199273"]
[WhiteElo "2471"]
[BlackElo "2845"]
[WhiteTeam "ISR"]
[BlackTeam "RUS"]
[WhiteClock "0:00:31"]
[BlackClock "0:00:47"]

1. e4 {[%clk 0:03:00]}  d6 {[%clk 0:02:59]} 2. d4 {[%clk 0:03:00]}  f5 {[%clk 0:03:00]} 3. Nc3 {[%clk 0:02:55]}  Nf6 {[%clk 0:03:00]} 4. Bd3 {[%clk 0:02:53]}  Nc6 {[%clk 0:03:00]} 5. Nge2 {[%clk 0:02:50]}  e5 {[%clk 0:02:59]} 6. d5 {[%clk 0:02:49]}  Ne7 {[%clk 0:03:00]} 7. Bg5 {[%clk 0:02:48]}  fxe4 {[%clk 0:02:55]} 8. Bxe4 {[%clk 0:02:42]}  Nxe4 {[%clk 0:02:50]} 9. Nxe4 {[%clk 0:02:43]}  Bf5 {[%clk 0:02:50]} 10. N2g3 {[%clk 0:02:43]}  Qd7 {[%clk 0:02:49]} 11. Qf3 {[%clk 0:02:41]}  Bg6 {[%clk 0:02:41]} 12. h4 {[%clk 0:02:35]}  Nxd5 {[%clk 0:02:38]} 13. O-O-O {[%clk 0:02:30]}  Bf7 {[%clk 0:02:30]} 14. Nf5 {[%clk 0:02:09]}  Be6 {[%clk 0:02:06]} 15. g4 {[%clk 0:02:02]}  h6 {[%clk 0:02:01]} 16. Bxh6 {[%clk 0:02:00]}  gxh6 {[%clk 0:01:51]} 17. Rxd5 {[%clk 0:01:58]}  O-O-O {[%clk 0:01:47]} 18. Ra5 {[%clk 0:01:54]}  Kb8 {[%clk 0:01:36]} 19. Rd1 {[%clk 0:01:47]}  Qc6 {[%clk 0:01:28]} 20. Qe3 {[%clk 0:01:36]}  b6 {[%clk 0:01:26]} 21. Ra3 {[%clk 0:01:36]}  h5 {[%clk 0:01:26]} 22. Rc3 {[%clk 0:01:31]}  Qb7 {[%clk 0:01:26]} 23. f3 {[%clk 0:01:30]}  hxg4 {[%clk 0:01:25]} 24. fxg4 {[%clk 0:01:31]}  d5 {[%clk 0:01:20]} 25. Ng5 {[%clk 0:01:30]}  Bxf5 {[%clk 0:00:57]} 26. Qxe5 {[%clk 0:01:26]}  Bb4 {[%clk 0:00:56]} 27. Rb3 {[%clk 0:01:19]}  Bxg4 {[%clk 0:00:56]} 28. Rg1 {[%clk 0:01:13]}  Bd6 {[%clk 0:00:55]} 29. Qf6 {[%clk 0:01:04]}  Bh5 {[%clk 0:00:55]} 30. Ne6 {[%clk 0:01:03]}  Rde8 {[%clk 0:00:54]} 31. Rg7 {[%clk 0:00:59]}  d4 {[%clk 0:00:53]} 32. Rh3 {[%clk 0:00:49]}  Qd5 {[%clk 0:00:48]} 33. Qxd4 {[%clk 0:00:35]}  Qxe6 {[%clk 0:00:47]} 34. Rd3 {[%clk 0:00:31]}  Qe1+ {[%clk 0:00:47]} 0-1

[Event "January 9 Late 2024"]
[Site "https://www.chess.com"]
[Date "2024.01.09"]
[Round "1"]
[White "Suich, Peter D"]
[Black "Schroeder, Jan-Christian"]
[Result "0-1"]
[Board "81"]
[TimeControl "180+1"]
[WhiteFideId "2050366"]
[BlackFideId "24662259"]
[WhiteElo "2470"]
[BlackElo "2840"]
[WhiteTeam "USA"]
[BlackTeam "GER"]
[WhiteClock "0:00:11"]
[BlackClock "0:00:10"]

1. d4 {[%clk 0:03:00]}  Nf6 {[%clk 0:02:59]} 2. c4 {[%clk 0:03:01]}  g6 {[%clk 0:02:59]} 3. g3 {[%clk 0:03:02]}  Bg7 {[%clk 0:03:00]} 4. Bg2 {[%clk 0:03:03]}  O-O {[%clk 0:03:00]} 5. Nc3 {[%clk 0:03:03]}  d6 {[%clk 0:03:00]} 6. Nf3 {[%clk 0:03:04]}  Bf5 {[%clk 0:02:58]} 7. O-O {[%clk 0:03:03]}  Qc8 {[%clk 0:02:57]} 8. Re1 {[%clk 0:02:59]}  Bh3 {[%clk 0:02:56]} 9. Bh1 {[%clk 0:02:59]}  h6 {[%clk 0:02:55]} 10. e4 {[%clk 0:02:59]}  Nc6 {[%clk 0:02:41]} 11. Nd5 {[%clk 0:02:43]}  Kh7 {[%clk 0:02:28]} 12. Nxf6+ {[%clk 0:02:29]}  Bxf6 {[%clk 0:02:27]} 13. e5 {[%clk 0:02:30]}  Bg7 {[%clk 0:02:26]} 14. Bf4 {[%clk 0:02:19]}  Bg4 {[%clk 0:02:23]} 15. Qd3 {[%clk 0:02:14]}  Rd8 {[%clk 0:02:00]} 16. e6 {[%clk 0:02:10]}  Bxe6 {[%clk 0:01:20]} 17. d5 {[%clk 0:02:09]}  Bf5 {[%clk 0:01:18]} 18. Qd2 {[%clk 0:02:09]}  Ne5 {[%clk 0:01:12]} 19. Nxe5 {[%clk 0:02:05]}  dxe5 {[%clk 0:01:12]} 20. Bxe5 {[%clk 0:02:04]}  Bxe5 {[%clk 0:01:11]} 21. Rxe5 {[%clk 0:02:05]}  e6 {[%clk 0:01:12]} 22. Rae1 {[%clk 0:01:51]}  c6 {[%clk 0:01:00]} 23. Qf4 {[%clk 0:01:51]}  cxd5 {[%clk 0:00:59]} 24. cxd5 {[%clk 0:01:50]}  exd5 {[%clk 0:00:39]} 25. Bxd5 {[%clk 0:01:49]}  Qd7 {[%clk 0:00:40]} 26. Bb3 {[%clk 0:01:47]}  Re8 {[%clk 0:00:38]} 27. h4 {[%clk 0:01:37]}  h5 {[%clk 0:00:37]} 28. R1e3 {[%clk 0:01:34]}  Kg7 {[%clk 0:00:34]} 29. Kh2 {[%clk 0:01:32]}  Rad8 {[%clk 0:00:33]} 30. Qc4 {[%clk 0:01:24]}  b6 {[%clk 0:00:29]} 31. Ba4 {[%clk 0:01:10]}  Rxe5 {[%clk 0:00:16]} 32. Bxd7 {[%clk 0:01:09]}  Rxe3 {[%clk 0:00:16]} 33. Qd4+ {[%clk 0:01:08]}  Kh7 {[%clk 0:00:14]} 34. Qxe3 {[%clk 0:01:06]}  Rxd7 {[%clk 0:00:15]} 35. a4 {[%clk 0:01:00]}  Be6 {[%clk 0:00:15]} 36. b4 {[%clk 0:01:00]}  Rc7 {[%clk 0:00:15]} 37. a5 {[%clk 0:01:00]}  bxa5 {[%clk 0:00:14]} 38. bxa5 {[%clk 0:01:01]}  Rd7 {[%clk 0:00:15]} 39. Qc5 {[%clk 0:01:00]}  Kg8 {[%clk 0:00:16]} 40. Kg2 {[%clk 0:01:00]}  Kh7 {[%clk 0:00:16]} 41. Kf3 {[%clk 0:01:00]}  Kg8 {[%clk 0:00:16]} 42. Kf4 {[%clk 0:01:01]}  Kg7 {[%clk 0:00:16]} 43. f3 {[%clk 0:00:59]}  Kh7 {[%clk 0:00:16]} 44. g4 {[%clk 0:01:00]}  hxg4 {[%clk 0:00:16]} 45. fxg4 {[%clk 0:01:00]}  Kg7 {[%clk 0:00:16]} 46. h5 {[%clk 0:01:00]}  gxh5 {[%clk 0:00:16]} 47. Qg5+ {[%clk 0:00:59]}  Kf8 {[%clk 0:00:16]} 48. Qh6+ {[%clk 0:00:58]}  Ke7 {[%clk 0:00:16]} 49. Qxh5 {[%clk 0:00:57]}  Rd4+ {[%clk 0:00:16]} 50. Ke3 {[%clk 0:00:52]}  Rd5 {[%clk 0:00:16]} 51. Qh4+ {[%clk 0:00:51]}  Kd7 {[%clk 0:00:17]} 52. Qe1 {[%clk 0:00:50]}  Kc6 {[%clk 0:00:16]} 53. Qb4 {[%clk 0:00:50]}  Rb5 {[%clk 0:00:15]} 54. Qe4+ {[%clk 0:00:49]}  Kc7 {[%clk 0:00:15]} 55. Qf4+ {[%clk 0:00:48]}  Kc6 {[%clk 0:00:15]} 56. Qe4+ {[%clk 0:00:43]}  Kc7 {[%clk 0:00:15]} 57. Qa4 {[%clk 0:00:41]}  a6 {[%clk 0:00:15]} 58. Qf4+ {[%clk 0:00:41]}  Kc6 {[%clk 0:00:15]} 59. Qe4+ {[%clk 0:00:41]}  Kc7 {[%clk 0:00:15]} 60. Qf4+ {[%clk 0:00:37]}  Kc6 {[%clk 0:00:15]} 61. Qe4+ {[%clk 0:00:35]}  Bd5 {[%clk 0:00:12]} 62. Qe8+ {[%clk 0:00:34]}  Kc5 {[%clk 0:00:12]} 63. Qc8+ {[%clk 0:00:33]}  Kb4 {[%clk 0:00:11]} 64. Qd7 {[%clk 0:00:31]}  Rxa5 {[%clk 0:00:10]} 65. Qd6+ {[%clk 0:00:31]}  Ka4 {[%clk 0:00:09]} 66. Qd7+ {[%clk 0:00:30]}  Rb5 {[%clk 0:00:10]} 67. Qe8 {[%clk 0:00:29]}  a5 {[%clk 0:00:10]} 68. Qd7 {[%clk 0:00:29]}  Kb4 {[%clk 0:00:10]} 69. Kd4 {[%clk 0:00:29]}  Be6 {[%clk 0:00:09]} 70. Qd6+ {[%clk 0:00:29]}  Kb3 {[%clk 0:00:10]} 71. Qg3+ {[%clk 0:00:28]}  Ka4 {[%clk 0:00:09]} 72. Qe1 {[%clk 0:00:24]}  Rb4+ {[%clk 0:00:09]} 73. Kc5 {[%clk 0:00:24]}  Rc4+ {[%clk 0:00:08]} 74. Kd6 {[%clk 0:00:23]}  Rxg4 {[%clk 0:00:08]} 75. Qd1+ {[%clk 0:00:22]}  Kb4 {[%clk 0:00:08]} 76. Qd2+ {[%clk 0:00:23]}  Kb5 {[%clk 0:00:09]} 77. Qd3+ {[%clk 0:00:23]}  Rc4 {[%clk 0:00:09]} 78. Qb1+ {[%clk 0:00:22]}  Ka6 {[%clk 0:00:08]} 79. Qd3 {[%clk 0:00:22]}  a4 {[%clk 0:00:08]} 80. Qf3 {[%clk 0:00:18]}  Ka5 {[%clk 0:00:06]} 81. Qa8+ {[%clk 0:00:18]}  Kb4 {[%clk 0:00:07]} 82. Qb7+ {[%clk 0:00:19]}  Kc3 {[%clk 0:00:07]} 83. Qa6 {[%clk 0:00:18]}  Kb3 {[%clk 0:00:07]} 84. Qb5+ {[%clk 0:00:17]}  Kc2 {[%clk 0:00:07]} 85. Qa5 {[%clk 0:00:17]}  Kd3 {[%clk 0:00:07]} 86. Qa6 {[%clk 0:00:16]}  Kc3 {[%clk 0:00:07]} 87. Qa5+ {[%clk 0:00:16]}  Kb3 {[%clk 0:00:07]} 88. Qb5+ {[%clk 0:00:16]}  Ka2 {[%clk 0:00:07]} 89. Qa6 {[%clk 0:00:14]}  a3 {[%clk 0:00:08]} 90. Qa5 {[%clk 0:00:12]}  Rd4+ {[%clk 0:00:08]} 91. Ke7 {[%clk 0:00:10]}  Kb3 {[%clk 0:00:07]} 92. Qb6+ {[%clk 0:00:10]}  Kc4 {[%clk 0:00:07]} 93. Qa6+ {[%clk 0:00:09]}  Kb4 {[%clk 0:00:07]} 94. Qb6+ {[%clk 0:00:10]}  Kc4 {[%clk 0:00:07]} 95. Qa6+ {[%clk 0:00:10]}  Kd5 {[%clk 0:00:07]} 96. Qxa3 {[%clk 0:00:09]}  Rc4 {[%clk 0:00:08]} 97. Qd6+ {[%clk 0:00:10]}  Ke4 {[%clk 0:00:08]} 98. Kf6 {[%clk 0:00:09]}  Kf3 {[%clk 0:00:07]} 99. Qe5 {[%clk 0:00:09]}  Rf4+ {[%clk 0:00:08]} 100. Ke7 {[%clk 0:00:10]}  Rf5 {[%clk 0:00:08]} 101. Qc3+ {[%clk 0:00:09]}  Kg4 {[%clk 0:00:09]} 102. Qb4+ {[%clk 0:00:10]}  Rf4 {[%clk 0:00:09]} 103. Qd6 {[%clk 0:00:11]}  Re4 {[%clk 0:00:09]} 104. Qd8 {[%clk 0:00:11]}  Bf5+ {[%clk 0:00:10]} 105. Kf8 {[%clk 0:00:12]}  Bg6 {[%clk 0:00:09]} 106. Qf6 {[%clk 0:00:12]}  Rf4 {[%clk 0:00:09]} 107. Kg7 {[%clk 0:00:13]}  Rxf6 {[%clk 0:00:10]} 108. Kxf6 {[%clk 0:00:11]}  Kf4 {[%clk 0:00:10]} 0-1

[Event "January 9 Late 2024"]
[Site "https://www.chess.com"]
[Date "2024.01.09"]
[Round "1"]
[White "Federzoni, Enzo"]
[Black "Zubritskiy, Artyom"]
[Result "0-1"]
[Board "85"]
[TimeControl "180+1"]
[WhiteFideId "2173301"]
[BlackFideId "4181247"]
[WhiteElo "2465"]
[BlackElo "2835"]
[WhiteTeam "BRA"]
[BlackTeam "FID"]
[WhiteClock "0:00:02"]
[BlackClock "0:00:30"]

1. e4 {[%clk 0:02:57]}  c5 {[%clk 0:02:57]} 2. Nf3 {[%clk 0:02:57]}  d6 {[%clk 0:02:56]} 3. d4 {[%clk 0:02:57]}  cxd4 {[%clk 0:02:56]} 4. Nxd4 {[%clk 0:02:58]}  Nf6 {[%clk 0:02:56]} 5. Nc3 {[%clk 0:02:59]}  a6 {[%clk 0:02:57]} 6. Bg5 {[%clk 0:02:59]}  Nbd7 {[%clk 0:02:57]} 7. Qe2 {[%clk 0:02:59]}  h6 {[%clk 0:02:56]} 8. Bh4 {[%clk 0:02:58]}  e6 {[%clk 0:02:56]} 9. f4 {[%clk 0:02:56]}  Qc7 {[%clk 0:02:53]} 10. O-O-O {[%clk 0:02:52]}  g5 {[%clk 0:02:50]} 11. fxg5 {[%clk 0:02:42]}  hxg5 {[%clk 0:02:51]} 12. Bxg5 {[%clk 0:02:41]}  Qc5 {[%clk 0:02:51]} 13. Be3 {[%clk 0:02:39]}  Qa5 {[%clk 0:02:50]} 14. Nb3 {[%clk 0:02:29]}  Qc7 {[%clk 0:02:50]} 15. g4 {[%clk 0:02:24]}  Ne5 {[%clk 0:02:47]} 16. g5 {[%clk 0:02:09]}  Nh5 {[%clk 0:02:37]} 17. Kb1 {[%clk 0:01:54]}  Bd7 {[%clk 0:02:35]} 18. Bg2 {[%clk 0:01:49]}  b5 {[%clk 0:02:28]} 19. a3 {[%clk 0:01:48]}  Rc8 {[%clk 0:02:27]} 20. Bd4 {[%clk 0:01:43]}  Nf4 {[%clk 0:02:24]} 21. Qf1 {[%clk 0:01:38]}  Nfg6 {[%clk 0:02:12]} 22. Qe1 {[%clk 0:01:20]}  Rh4 {[%clk 0:02:04]} 23. Bf2 {[%clk 0:01:15]}  Rg4 {[%clk 0:02:04]} 24. Bf1 {[%clk 0:01:10]}  Rxg5 {[%clk 0:02:00]} 25. h4 {[%clk 0:01:10]}  Rh5 {[%clk 0:02:00]} 26. Be2 {[%clk 0:01:09]}  Rh8 {[%clk 0:02:01]} 27. h5 {[%clk 0:01:10]}  Nf4 {[%clk 0:02:00]} 28. Bg3 {[%clk 0:01:04]}  Bh6 {[%clk 0:01:58]} 29. Bxf4 {[%clk 0:01:00]}  Bxf4 {[%clk 0:01:59]} 30. Qf1 {[%clk 0:00:56]}  Bg5 {[%clk 0:01:53]} 31. Nd4 {[%clk 0:00:56]}  Qc5 {[%clk 0:01:35]} 32. Nb3 {[%clk 0:00:53]}  Qb6 {[%clk 0:01:32]} 33. Rg1 {[%clk 0:00:50]}  Be7 {[%clk 0:01:26]} 34. h6 {[%clk 0:00:46]}  Kd8 {[%clk 0:01:23]} 35. h7 {[%clk 0:00:40]}  Rxh7 {[%clk 0:01:17]} 36. Rg8+ {[%clk 0:00:40]}  Kc7 {[%clk 0:01:17]} 37. Rxc8+ {[%clk 0:00:40]}  Kxc8 {[%clk 0:01:17]} 38. Qg2 {[%clk 0:00:38]}  Rh8 {[%clk 0:01:13]} 39. Nd4 {[%clk 0:00:35]}  Kb8 {[%clk 0:01:12]} 40. Nf3 {[%clk 0:00:33]}  Bf6 {[%clk 0:01:10]} 41. Nxe5 {[%clk 0:00:31]}  Bxe5 {[%clk 0:01:11]} 42. Na2 {[%clk 0:00:29]}  Ka7 {[%clk 0:00:58]} 43. Bd3 {[%clk 0:00:24]}  Rc8 {[%clk 0:00:53]} 44. Qf3 {[%clk 0:00:21]}  Be8 {[%clk 0:00:52]} 45. Qe2 {[%clk 0:00:20]}  a5 {[%clk 0:00:45]} 46. Qd2 {[%clk 0:00:17]}  Rb8 {[%clk 0:00:41]} 47. Rh1 {[%clk 0:00:17]}  b4 {[%clk 0:00:37]} 48. axb4 {[%clk 0:00:14]}  axb4 {[%clk 0:00:38]} 49. Nc1 {[%clk 0:00:14]}  Ba4 {[%clk 0:00:36]} 50. Rh7 {[%clk 0:00:12]}  Qd4 {[%clk 0:00:30]} 51. Rxf7+ {[%clk 0:00:12]}  Ka8 {[%clk 0:00:30]} 52. c3 {[%clk 0:00:02]}  bxc3 {[%clk 0:00:31]} 53. Qe2 {[%clk 0:00:02]}  c2+ {[%clk 0:00:30]} 54. Bxc2 {[%clk 0:00:02]}  Qxb2# {[%clk 0:00:30]} 0-1

[Event "January 9 Late 2024"]
[Site "https://www.chess.com"]
[Date "2024.01.09"]
[Round "1"]
[White "Dourerassou, Jonathan"]
[Black "Ezat, Mohamed"]
[Result "1-0"]
[Board "86"]
[TimeControl "180+1"]
[WhiteFideId "628050"]
[BlackFideId "10600906"]
[WhiteElo "2829"]
[BlackElo "2460"]
[WhiteTeam "FRA"]
[BlackTeam "EGY"]
[WhiteClock "0:00:23"]
[BlackClock "0:00:00"]

1. e4 {[%clk 0:02:53]}  e5 {[%clk 0:02:59]} 2. Nf3 {[%clk 0:02:52]}  Nc6 {[%clk 0:02:59]} 3. Bb5 {[%clk 0:02:53]}  Nge7 {[%clk 0:02:59]} 4. O-O {[%clk 0:02:52]}  a6 {[%clk 0:02:59]} 5. Ba4 {[%clk 0:02:52]}  g6 {[%clk 0:02:59]} 6. d3 {[%clk 0:02:52]}  Bg7 {[%clk 0:02:58]} 7. Bg5 {[%clk 0:02:52]}  O-O {[%clk 0:02:54]} 8. Qc1 {[%clk 0:02:51]}  d6 {[%clk 0:02:51]} 9. Bh6 {[%clk 0:02:49]}  Bg4 {[%clk 0:02:49]} 10. Bxg7 {[%clk 0:02:49]}  Kxg7 {[%clk 0:02:48]} 11. Nbd2 {[%clk 0:02:50]}  h6 {[%clk 0:02:45]} 12. h3 {[%clk 0:02:49]}  Bxf3 {[%clk 0:02:44]} 13. Nxf3 {[%clk 0:02:50]}  f5 {[%clk 0:02:44]} 14. c3 {[%clk 0:02:46]}  fxe4 {[%clk 0:02:37]} 15. dxe4 {[%clk 0:02:47]}  Rxf3 {[%clk 0:02:36]} 16. gxf3 {[%clk 0:02:48]}  g5 {[%clk 0:02:35]} 17. Kh1 {[%clk 0:02:43]}  Qc8 {[%clk 0:02:34]} 18. Kh2 {[%clk 0:02:41]}  Ng6 {[%clk 0:02:33]} 19. Rg1 {[%clk 0:02:41]}  Nf4 {[%clk 0:02:32]} 20. Rg3 {[%clk 0:02:41]}  Ne7 {[%clk 0:02:32]} 21. Qe3 {[%clk 0:02:38]}  Neg6 {[%clk 0:02:31]} 22. Rag1 {[%clk 0:02:38]}  Qe6 {[%clk 0:02:26]} 23. Bb3 {[%clk 0:02:36]}  Qd7 {[%clk 0:02:25]} 24. Rg4 {[%clk 0:02:33]}  Rf8 {[%clk 0:02:24]} 25. R1g3 {[%clk 0:02:26]}  Nh5 {[%clk 0:02:17]} 26. Rg1 {[%clk 0:02:21]}  Kh7 {[%clk 0:02:15]} 27. Qd3 {[%clk 0:02:17]}  Nh4 {[%clk 0:02:04]} 28. Bd1 {[%clk 0:02:09]}  Nf4 {[%clk 0:02:02]} 29. Qe3 {[%clk 0:02:07]}  h5 {[%clk 0:01:38]} 30. R4g3 {[%clk 0:02:05]}  Kh6 {[%clk 0:01:34]} 31. Be2 {[%clk 0:02:02]}  Rg8 {[%clk 0:01:20]} 32. Bf1 {[%clk 0:02:02]}  Qf7 {[%clk 0:01:16]} 33. b3 {[%clk 0:01:57]}  Qf6 {[%clk 0:01:16]} 34. Bc4 {[%clk 0:01:53]}  Rg6 {[%clk 0:01:13]} 35. Qa7 {[%clk 0:01:48]}  b5 {[%clk 0:00:41]} 36. Bf1 {[%clk 0:01:43]}  Ne6 {[%clk 0:00:35]} 37. Qa8 {[%clk 0:01:38]}  Kg7 {[%clk 0:00:29]} 38. Be2 {[%clk 0:01:29]}  Nf4 {[%clk 0:00:28]} 39. Bd1 {[%clk 0:01:28]}  Nd3 {[%clk 0:00:23]} 40. Qa7 {[%clk 0:01:09]}  Qe7 {[%clk 0:00:17]} 41. Bc2 {[%clk 0:00:59]}  Nf4 {[%clk 0:00:15]} 42. Qxa6 {[%clk 0:00:59]}  g4 {[%clk 0:00:09]} 43. fxg4 {[%clk 0:00:57]}  hxg4 {[%clk 0:00:07]} 44. Bd1 {[%clk 0:00:58]}  Nxh3 {[%clk 0:00:06]} 45. Rxh3 {[%clk 0:00:53]}  gxh3 {[%clk 0:00:06]} 46. Rxg6+ {[%clk 0:00:54]}  Nxg6 {[%clk 0:00:06]} 47. Qxb5 {[%clk 0:00:45]}  Qf7 {[%clk 0:00:05]} 48. Qe2 {[%clk 0:00:42]}  Qf4+ {[%clk 0:00:06]} 49. Kh1 {[%clk 0:00:40]}  h2 {[%clk 0:00:05]} 50. Qf3 {[%clk 0:00:39]}  Qd2 {[%clk 0:00:04]} 51. Kxh2 {[%clk 0:00:37]}  Nf4 {[%clk 0:00:04]} 52. a4 {[%clk 0:00:35]}  c5 {[%clk 0:00:03]} 53. a5 {[%clk 0:00:35]}  Qa2 {[%clk 0:00:02]} 54. Qg4+ {[%clk 0:00:35]}  Kf8 {[%clk 0:00:02]} 55. Qc8+ {[%clk 0:00:34]}  Kg7 {[%clk 0:00:02]} 56. Qd7+ {[%clk 0:00:33]}  Kf8 {[%clk 0:00:02]} 57. Qxd6+ {[%clk 0:00:24]}  Kf7 {[%clk 0:00:02]} 58. Qd7+ {[%clk 0:00:23]}  Kf8 {[%clk 0:00:00]} 59. Qf5+ {[%clk 0:00:23]} 1-0

[Event "January 9 Late 2024"]
[Site "https://www.chess.com"]
[Date "2024.01.09"]
[Round "1"]
[White "Toktomushev, Teimur"]
[Black "Rustemov, Alexander"]
[Result "0-1"]
[Board "87"]
[TimeControl "180+1"]
[WhiteFideId "14176726"]
[BlackFideId "4119002"]
[WhiteElo "2459"]
[BlackElo "2826"]
[WhiteTeam "UKR"]
[BlackTeam "RUS"]
[WhiteClock "0:00:00"]
[BlackClock "0:01:18"]

1. d4 {[%clk 0:02:14]}  d5 {[%clk 0:02:59]} 2. c4 {[%clk 0:02:14]}  c6 {[%clk 0:02:59]} 3. Nc3 {[%clk 0:02:15]}  Nf6 {[%clk 0:02:59]} 4. e3 {[%clk 0:02:15]}  Bg4 {[%clk 0:02:57]} 5. Qb3 {[%clk 0:02:15]}  Qb6 {[%clk 0:02:50]} 6. Qxb6 {[%clk 0:01:53]}  axb6 {[%clk 0:02:51]} 7. cxd5 {[%clk 0:01:53]}  Nxd5 {[%clk 0:02:39]} 8. Nxd5 {[%clk 0:00:53]}  cxd5 {[%clk 0:02:40]} 9. Nf3 {[%clk 0:00:53]}  Nc6 {[%clk 0:02:32]} 10. Bb5 {[%clk 0:00:50]}  Bd7 {[%clk 0:02:30]} 11. Bd2 {[%clk 0:00:51]}  e6 {[%clk 0:02:27]} 12. a4 {[%clk 0:00:39]}  Bd6 {[%clk 0:02:26]} 13. Ke2 {[%clk 0:00:38]}  Ke7 {[%clk 0:02:26]} 14. Rhc1 {[%clk 0:00:35]}  Rhc8 {[%clk 0:02:23]} 15. Ne1 {[%clk 0:00:34]}  Rc7 {[%clk 0:02:13]} 16. Nd3 {[%clk 0:00:27]}  Rac8 {[%clk 0:02:12]} 17. f4 {[%clk 0:00:14]}  f6 {[%clk 0:02:05]} 18. Rc3 {[%clk 0:00:09]}  h6 {[%clk 0:01:43]} 19. Rac1 {[%clk 0:00:09]}  g5 {[%clk 0:01:43]} 20. fxg5 {[%clk 0:00:04]}  hxg5 {[%clk 0:01:43]} 21. h3 {[%clk 0:00:03]}  f5 {[%clk 0:01:40]} 22. g4 {[%clk 0:00:02]}  Rh8 {[%clk 0:01:25]} 23. gxf5 {[%clk 0:00:03]}  exf5 {[%clk 0:01:25]} 24. Nf2 {[%clk 0:00:03]}  g4 {[%clk 0:01:19]} 25. hxg4 {[%clk 0:00:03]}  fxg4 {[%clk 0:01:20]} 26. b4 {[%clk 0:00:03]}  g3 {[%clk 0:01:20]} 27. Nd3 {[%clk 0:00:02]}  Bg4+ {[%clk 0:01:18]} 28. Kf1 {[%clk 0:00:01]}  Rh1+ {[%clk 0:01:17]} 29. Kg2 {[%clk 0:00:02]}  Rh2+ {[%clk 0:01:18]} 30. Kg1 {[%clk 0:00:00]}  Rxd2 {[%clk 0:01:18]} 0-1